bitfinex-derivatives/quotes_SOLF0:USTF0_20250624
["timestamp","ask_amount","ask_price","bid_price","bid_amount"]
[1750753691200,6.42665533,144.39,144.23,4.4952]
[1750753691601,27.19665533,144.39,144.23,4.4952]
[1750753691899,27.19665533,144.38,144.23,4.4952]
[1750753692502,6.42665533,144.38,144.23,4.4952]
[1750753692695,27.19665533,144.39,144.23,4.4952]
[1750753697594,20.77,144.39,144.23,4.4952]
[1750753698705,27.19665533,144.39,144.23,4.4952]
[1750753698908,1.20592567,144.4,144.25,8.61049687]
[1750753699107,0.5561,144.42,144.26,2.2495]
[1750753699694,0.5561,144.42,144.26,10.82415109]
[1750753700294,0.5561,144.42,144.26,2.2495]
[1750753702200,1.20571676,144.43,144.26,2.2495]
[1750753702600,1.20571676,144.43,144.26,10.82415109]
[1750753702901,1.0,144.44,144.28,8.57465109]
[1750753703102,1.0,144.44,144.29,4.6154]
[1750753704604,1.0,144.44,144.29,13.19005109]
[1750753705305,1.0,144.44,144.3,8.57465109]
[1750753705607,124.29024217,144.47,144.31,8.57465109]
[1750753705806,124.29024217,144.47,144.32,2.2738]
[1750753706194,6.39693032,144.54,144.32,10.84845109]
[1750753706396,9.48735997,144.57,144.35,8.57465109]
[1750753706598,1.20471501,144.57,144.36,2.2482]
[1750753708306,6.39693032,144.55,144.36,2.2482]
[1750753708605,32.1095929,144.55,144.36,2.2482]
[1750753708996,34.64482255,144.55,144.36,2.2482]
[1750753709305,4.94266258,144.54,144.36,2.2482]
[1750753709501,25.71266258,144.54,144.36,2.2482]
[1750753710904,25.71266258,144.54,144.37,2.2077]
[1750753711513,20.77,144.54,144.37,2.2077]
[1750753711805,25.71266258,144.54,144.37,2.2077]
[1750753713307,28.24271432,144.54,144.37,2.2077]
[1750753713915,25.71266258,144.54,144.37,2.2077]
[1750753714214,28.24271432,144.54,144.37,2.2077]
[1750753714416,25.71266258,144.53,144.37,2.2077]
[1750753714908,1.5527,144.52,144.37,2.2077]
[1750753716910,1.5527,144.52,144.38,2.3848]
[1750753718820,1.5527,144.52,144.37,2.2077]
[1750753719010,20.77,144.51,144.37,2.2077]
[1750753719214,22.3227,144.52,144.37,2.2077]
[1750753719607,27.26613994,144.52,144.37,2.2077]
[1750753719807,22.3227,144.52,144.37,2.2077]
[1750753720308,1.5527,144.52,144.38,2.3286]
[1750753721416,6.4967697,144.52,144.38,2.3286]
[1750753721618,20.77,144.51,144.38,2.3286]
[1750753723222,22.3227,144.52,144.38,2.3286]
[1750753723421,1.5527,144.52,144.38,2.3286]
[1750753735230,7.90178244,144.52,144.38,2.3286]
[1750753735423,1.5527,144.52,144.38,2.3286]
[1750753742221,1.5527,144.52,144.38,10.83598585]
[1750753742927,1.5527,144.52,144.39,8.50738585]
[1750753743130,1.5527,144.52,144.38,2.3286]
[1750753743722,4.085626,144.52,144.38,2.3286]
[1750753743921,8.99756034,144.52,144.38,2.3286]
[1750753744231,4.085626,144.52,144.38,2.3286]
[1750753744636,7.44486034,144.51,144.37,2.2077]
[1750753744839,2.532926,144.51,144.37,10.71508585]
[1750753745034,4.085626,144.52,144.37,10.71508585]
[1750753745238,2.532926,144.51,144.38,2.3467]
[1750753745436,2.532926,144.5,144.37,2.2077]
[1750753745635,4.91193434,144.5,144.37,10.71508585]
[1750753745840,4.91193434,144.51,144.37,10.71508585]
[1750753746035,7.45470307,144.5,144.37,10.71508585]
[1750753746336,4.91193434,144.51,144.37,10.71508585]
[1750753746531,12.88660177,144.5,144.37,2.2077]
[1750753746739,12.88965575,144.49,144.37,2.2077]
[1750753747033,12.88965575,144.48,144.37,2.2077]
[1750753747233,7.97772141,144.47,144.37,2.2077]
[1750753747536,5.43177159,144.46,144.37,2.2077]
[1750753747738,5.43177159,144.45,144.37,2.2077]
[1750753747942,7.47870929,144.48,144.37,2.2077]
[1750753748240,12.90801962,144.47,144.37,2.2077]
[1750753748444,7.97623293,144.46,144.37,2.2077]
[1750753748635,5.42931033,144.45,144.37,2.2077]
[1750753748830,6.34908244,144.48,144.37,2.2077]
[1750753749128,5.42835657,144.47,144.37,2.2077]
[1750753749327,12.90691916,144.46,144.37,2.2077]
[1750753749542,7.97548967,144.45,144.37,2.2077]
[1750753749738,5.42835657,144.44,144.37,2.2077]
[1750753749942,1.5528,144.46,144.37,2.2077]
[1750753750156,5.42882423,144.45,144.37,2.2077]
[1750753750352,1.5528,144.46,144.37,2.2077]
[1750753750651,5.42857525,144.45,144.37,2.2077]
[1750753750846,5.42825177,144.44,144.37,2.2077]
[1750753751053,1.5528,144.46,144.37,2.2077]
[1750753751256,7.97577469,144.45,144.37,2.2077]
[1750753751551,1.5528,144.46,144.37,2.2077]
[1750753751751,7.97640111,144.45,144.37,2.2077]
[1750753751954,1.5528,144.46,144.37,2.2077]
[1750753752146,7.98038579,144.45,144.37,2.2077]
[1750753752347,5.43075795,144.44,144.37,2.2077]
[1750753752547,1.5528,144.46,144.37,2.2077]
[1750753752752,2.54951087,144.45,144.37,2.2077]
[1750753753054,1.5528,144.46,144.37,2.2077]
[1750753753246,2.54951442,144.45,144.37,2.2077]
[1750753753449,1.5528,144.46,144.37,2.2077]
[1750753753747,2.54938487,144.45,144.37,2.2077]
[1750753753948,1.5528,144.46,144.37,2.2077]
[1750753754147,2.54938321,144.45,144.37,2.2077]
[1750753754344,1.5528,144.46,144.37,10.82705636]
[1750753757454,1.5528,144.46,144.38,8.61935636]
[1750753757658,1.5528,144.46,144.37,10.82705636]
[1750753758059,1.5528,144.46,144.37,8.61935636]
[1750753758557,2.54877435,144.45,144.36,2.2482]
[1750753758760,7.48283046,144.44,144.32,2.2504]
[1750753759058,7.48283046,144.43,144.32,2.2504]
[1750753759266,2.54877435,144.42,144.32,2.2504]
[1750753759557,2.5471709,144.41,144.32,10.87291919]
[1750753759752,6.41475897,144.43,144.32,2.2504]
[1750753759947,2.5471881,144.42,144.32,2.2504]
[1750753760155,2.5471881,144.41,144.32,2.2504]
[1750753760458,2.5471881,144.4,144.3,2.2193]
[1750753760957,6.41475897,144.43,144.3,10.84181919]
[1750753762449,6.41475897,144.43,144.3,2.2193]
[1750753762652,6.41475897,144.44,144.3,10.84181919]
[1750753764260,131.8378552,144.45,144.3,10.84181919]
[1750753765356,125.42309623,144.45,144.32,8.62251919]
[1750753765557,1.5528,144.46,144.33,4.4626]
[1750753766060,1.5528,144.46,144.33,13.08511919]
[1750753771166,1.5528,144.46,144.34,8.62251919]
[1750753771362,6.41475897,144.5,144.35,8.62251919]
[1750753771559,7.97135897,144.5,144.36,2.2763]
[1750753771963,6.41475897,144.49,144.36,2.2763]
[1750753772163,7.97135897,144.5,144.36,2.2763]
[1750753773660,2.53954983,144.49,144.36,2.2763]
[1750753773866,2.53954983,144.48,144.36,2.2763]
[1750753774065,2.53954983,144.47,144.36,2.2763]
[1750753774358,2.53954983,144.48,144.36,2.2763]
[1750753774564,2.53954983,144.47,144.36,2.2763]
[1750753774765,2.53954983,144.48,144.36,2.2763]
[1750753774961,2.53954983,144.47,144.36,2.2763]
[1750753775161,4.91111309,144.49,144.36,2.2763]
[1750753775162,2.53954983,144.48,144.36,2.2763]
[1750753775372,2.57528175,144.47,144.36,2.2763]
[1750753775667,2.57528175,144.48,144.36,2.2763]
[1750753775869,2.57528175,144.47,144.36,2.2763]
[1750753776061,2.57528175,144.46,144.36,2.2763]
[1750753776255,2.57528175,144.48,144.36,2.2763]
[1750753776459,2.57528175,144.47,144.36,2.2763]
[1750753776661,5.43027872,144.46,144.36,2.2763]
[1750753776855,2.57528175,144.47,144.36,2.2763]
[1750753777059,5.4301685,144.46,144.36,2.2763]
[1750753777263,2.57528175,144.47,144.36,2.2763]
[1750753777461,5.43081539,144.46,144.36,2.2763]
[1750753777670,2.57528175,144.47,144.36,2.2763]
[1750753777966,5.43211179,144.46,144.36,2.2763]
[1750753778169,2.57576957,144.47,144.36,2.2763]
[1750753778374,5.43230258,144.46,144.36,2.2763]
[1750753778670,2.57667532,144.51,144.37,12.93377879]
[1750753778869,5.43445466,144.5,144.38,12.93377879]
[1750753779068,2.57679918,144.52,144.39,4.5355]
[1750753779268,5.43484668,144.51,144.39,4.5355]
[1750753779462,2.57679918,144.52,144.39,4.5355]
[1750753779665,5.4341948,144.51,144.39,4.5355]
[1750753779871,2.57679918,144.52,144.39,4.5355]
[1750753780071,5.43421482,144.51,144.39,4.5355]
[1750753780274,121.37619019,144.53,144.39,17.46927879]
[1750753780464,5.4343143,144.52,144.39,17.46927879]
[1750753780666,121.37619019,144.53,144.39,17.46927879]
[1750753780971,5.43284245,144.52,144.39,17.46927879]
[1750753781275,121.37619019,144.53,144.39,4.5355]
[1750753781580,5.43177859,144.52,144.39,4.5355]
[1750753781760,121.37619019,144.53,144.39,4.5355]
[1750753781966,5.43165635,144.52,144.39,4.5355]
[1750753782170,121.37619019,144.53,144.39,4.5355]
[1750753782371,5.43271987,144.52,144.39,4.5355]
[1750753782577,121.37619019,144.53,144.39,4.5355]
[1750753782776,8.01650624,144.52,144.39,4.5355]
[1750753782976,121.37619019,144.53,144.39,4.5355]
[1750753783189,5.43332125,144.52,144.39,4.5355]
[1750753783378,121.37619019,144.53,144.39,17.46927879]
[1750753784574,1.554,144.56,144.4,12.93377879]
[1750753784779,5.45855926,144.55,144.4,12.93377879]
[1750753785078,4.13665417,144.56,144.4,12.93377879]
[1750753785273,5.4584379,144.55,144.41,12.93377879]
[1750753785484,8.04109207,144.56,144.42,2.195]
[1750753785782,5.4584379,144.55,144.42,2.195]
[1750753785974,8.04109207,144.57,144.42,2.195]
[1750753786172,5.4584379,144.56,144.42,2.195]
[1750753786375,8.0376074,144.57,144.42,2.195]
[1750753786673,5.45495323,144.56,144.42,2.195]
[1750753786872,8.0376074,144.57,144.42,2.195]
[1750753787071,5.45495323,144.56,144.42,2.195]
[1750753787272,8.0376074,144.57,144.42,2.195]
[1750753787474,5.45495323,144.56,144.42,2.195]
[1750753787788,8.0376074,144.57,144.42,2.195]
[1750753788080,5.45495323,144.56,144.42,2.195]
[1750753788281,5.45495323,144.57,144.42,2.195]
[1750753788781,2.58265417,144.59,144.42,2.195]
[1750753788782,5.45495323,144.59,144.43,12.93377879]
[1750753788974,5.47077278,144.6,144.44,12.93377879]
[1750753789174,8.05342695,144.61,144.45,4.6926]
[1750753789380,8.05602042,144.62,144.45,4.6926]
[1750753789571,8.05602042,144.61,144.45,4.6926]
[1750753789770,5.47077278,144.62,144.45,4.6926]
[1750753789967,5.47077278,144.61,144.45,4.6926]
[1750753790177,5.47077278,144.62,144.45,4.6926]
[1750753790383,5.47077278,144.61,144.45,4.6926]
[1750753790679,5.47077278,144.6,144.45,4.6926]
[1750753790877,5.47077278,144.59,144.45,4.6926]
[1750753791078,5.47077278,144.6,144.45,4.6926]
[1750753792373,8.05178964,144.61,144.45,4.6926]
[1750753792574,5.47077278,144.61,144.45,4.6926]
[1750753792781,5.47077278,144.6,144.45,4.6926]
[1750753792983,5.47077278,144.61,144.45,4.6926]
[1750753793174,5.47077278,144.6,144.45,4.6926]
[1750753793484,5.47077278,144.61,144.45,4.6926]
[1750753793677,26.24077278,144.61,144.45,4.6926]
[1750753793878,5.47077278,144.6,144.45,4.6926]
[1750753796780,26.24077278,144.59,144.45,4.6926]
[1750753796982,5.47077278,144.58,144.45,4.6926]
[1750753797376,1.5529,144.57,144.45,4.6926]
[1750753801082,7.02367278,144.57,144.45,4.6926]
[1750753801382,27.79367278,144.57,144.45,2.4041]
[1750753801569,26.24077278,144.56,144.45,2.4041]
[1750753801774,5.47077278,144.55,144.45,2.4041]
[1750753802877,27.44530014,144.56,144.45,2.4041]
[1750753803077,5.47077278,144.55,144.45,2.4041]
[1750753803383,26.24077278,144.55,144.45,2.4041]
[1750753803683,5.47077278,144.54,144.45,2.4041]
[1750753803883,5.47077278,144.54,144.42,2.195]
[1750753804184,26.24077278,144.54,144.42,2.195]
[1750753804378,26.24077278,144.53,144.42,2.195]
[1750753804678,20.77,144.53,144.42,2.195]
[1750753804876,5.44133454,144.52,144.42,2.195]
[1750753805381,1.5531,144.51,144.42,2.195]
[1750753805578,1.5531,144.51,144.38,2.1905]
[1750753805785,1.5531,144.51,144.38,4.4629]
[1750753805972,27.76443454,144.51,144.38,4.4629]
[1750753806278,5.44133454,144.5,144.38,4.4629]
[1750753807277,27.76443454,144.51,144.38,4.4629]
[1750753807483,5.44133454,144.5,144.38,4.4629]
[1750753808477,27.76443454,144.51,144.38,4.4629]
[1750753808682,5.44133454,144.5,144.38,4.4629]
[1750753809679,6.99443454,144.51,144.38,4.4629]
[1750753810983,1.5531,144.51,144.38,4.4629]
[1750753811185,6.99443454,144.51,144.38,4.4629]
[1750753812183,1.5531,144.51,144.38,4.4629]
[1750753812388,6.99443454,144.51,144.38,4.4629]
[1750753812590,1.5531,144.51,144.38,4.4629]
[1750753812981,8.02108217,144.54,144.38,4.4629]
[1750753813389,2.57974763,144.54,144.38,4.4629]
[1750753813592,5.44133454,144.56,144.39,12.93377879]
[1750753813786,5.44133454,144.57,144.39,12.93377879]
[1750753813983,5.44133454,144.56,144.39,12.93377879]
[1750753814198,5.44133454,144.57,144.39,12.93377879]
[1750753816482,5.44133454,144.57,144.41,12.93377879]
[1750753816687,5.44133454,144.57,144.4,12.93377879]
[1750753816886,5.44133454,144.56,144.4,12.93377879]
[1750753817089,5.44133454,144.57,144.4,12.93377879]
[1750753817294,5.44133454,144.56,144.4,12.93377879]
[1750753817490,5.44133454,144.57,144.41,12.93377879]
[1750753817692,5.44133454,144.58,144.42,12.93377879]
[1750753817893,5.44133454,144.61,144.43,15.19477879]
[1750753818198,5.44133454,144.6,144.44,4.788]
[1750753818395,5.44133454,144.59,144.44,4.788]
[1750753818597,5.44133454,144.61,144.44,4.788]
[1750753818889,5.44133454,144.6,144.44,4.788]
[1750753819096,5.44133454,144.59,144.44,4.788]
[1750753819295,125.59837821,144.64,144.46,12.93377879]
[1750753819595,5.47237387,144.63,144.46,12.93377879]
[1750753819795,5.47237387,144.62,144.47,12.93377879]
[1750753820098,5.47237387,144.63,144.46,12.93377879]
[1750753820304,1.5571,144.66,144.48,12.93377879]
[1750753820606,5.47159749,144.65,144.49,2.261]
[1750753820785,5.47159749,144.64,144.49,2.261]
[1750753820985,4.13159771,144.66,144.49,2.261]
[1750753820986,5.47159749,144.65,144.49,2.261]
[1750753821196,5.47159749,144.64,144.49,2.261]
[1750753821397,5.47159749,144.65,144.49,2.261]
[1750753821597,4.13159771,144.66,144.49,2.261]
[1750753821598,5.47159749,144.64,144.49,2.261]
[1750753821789,5.47159749,144.65,144.49,2.261]
[1750753822101,5.47159749,144.64,144.49,2.261]
[1750753822296,5.47159749,144.65,144.49,2.261]
[1750753822491,5.47159749,144.64,144.49,2.261]
[1750753822686,5.47159749,144.63,144.49,2.261]
[1750753822993,5.47159749,144.62,144.49,2.261]
[1750753823199,5.47159749,144.63,144.49,2.261]
[1750753823394,5.47159749,144.62,144.49,2.261]
[1750753823595,5.47159749,144.63,144.49,2.261]
[1750753823791,5.47159749,144.62,144.49,2.261]
[1750753823996,5.47159749,144.64,144.49,2.261]
[1750753824294,6.41475897,144.73,144.52,12.93377879]
[1750753824493,5.50881103,144.72,144.53,17.51307879]
[1750753824699,5.50881103,144.71,144.54,12.93377879]
[1750753824893,5.50881103,144.72,144.55,2.2586]
[1750753825093,5.50881103,144.71,144.55,2.2586]
[1750753825294,5.50881103,144.7,144.55,2.2586]
[1750753825596,5.50881103,144.71,144.55,2.2586]
[1750753825894,5.50881103,144.7,144.55,2.2586]
[1750753826097,5.50881103,144.71,144.55,2.2586]
[1750753826302,20.29129838,144.73,144.55,2.2586]
[1750753826303,5.50881103,144.7,144.55,2.2586]
[1750753826487,5.50881103,144.71,144.55,2.2586]
[1750753826689,5.50881103,144.72,144.55,2.2586]
[1750753826893,5.50881103,144.71,144.55,2.2586]
[1750753827090,5.50881103,144.72,144.55,2.2586]
[1750753827493,14.62497251,144.73,144.55,2.2586]
[1750753827692,7.06231103,144.73,144.55,2.2586]
[1750753832405,7.06079063,144.73,144.55,2.2586]
[1750753832807,1.5535,144.73,144.55,2.2586]
[1750753839120,27.82517366,144.73,144.55,2.2586]
[1750753839403,22.3235,144.73,144.55,2.2586]
[1750753839612,5.50482473,144.72,144.55,2.2586]
[1750753839800,26.27482473,144.72,144.55,2.2586]
[1750753840006,20.77,144.7,144.55,2.2586]
[1750753841010,20.77,144.71,144.55,2.2586]
[1750753842102,20.77,144.72,144.55,2.2586]
[1750753843001,1.5535,144.73,144.55,2.2586]
[1750753843200,22.3235,144.73,144.55,2.2586]
[1750753844204,1.5535,144.73,144.55,2.2586]
[1750753846114,7.03679144,144.73,144.55,2.2586]
[1750753846507,1.5535,144.73,144.55,2.2586]
[1750753852518,5.50134776,144.78,144.55,2.2586]
[1750753852815,1.5488,144.78,144.56,33.69377879]
[1750753853019,1.5488,144.78,144.57,12.93377879]
[1750753853221,1.5488,144.78,144.58,12.93377879]
[1750753853614,1.5488,144.78,144.59,88.59008359]
[1750753855223,5.51574414,144.83,144.59,109.35008359]
[1750753855408,5.51574414,144.82,144.59,109.35008359]
[1750753855813,5.51574414,144.82,144.59,88.59008359]
[1750753856011,5.51574414,144.81,144.59,88.59008359]
[1750753856213,5.51574414,144.82,144.59,88.59008359]
[1750753856425,5.51574414,144.81,144.59,88.59008359]
[1750753856725,5.51574414,144.8,144.59,88.59008359]
[1750753857025,10.49390404,144.81,144.59,88.59008359]
[1750753857222,5.51574414,144.8,144.59,88.59008359]
[1750753857421,5.51574414,144.79,144.59,88.59008359]
[1750753857619,5.51574414,144.8,144.59,88.59008359]
[1750753858123,10.49390404,144.81,144.59,88.59008359]
[1750753858319,5.51574414,144.8,144.59,88.59008359]
[1750753858515,5.51574414,144.79,144.59,88.59008359]
[1750753858812,4.9781599,144.8,144.59,88.59008359]
[1750753859011,9.00056618,144.82,144.59,88.59008359]
[1750753859012,5.56479329,144.79,144.59,88.59008359]
[1750753859211,5.56479329,144.78,144.59,88.59008359]
[1750753859410,4.9781599,144.79,144.59,88.59008359]
[1750753859614,10.54486485,144.78,144.59,88.59008359]
[1750753859811,2.58580721,144.8,144.59,88.59008359]
[1750753859812,7.11460495,144.77,144.59,88.59008359]
[1750753860012,1.5479,144.77,144.59,88.59008359]
[1750753860521,1.5479,144.77,144.59,101.52386238]
[1750753861824,1.5479,144.77,144.59,88.59008359]
[1750753862826,10.59202234,144.76,144.59,88.59008359]
[1750753863027,13.1935143,144.75,144.59,88.59008359]
[1750753863326,13.19401688,144.74,144.59,88.59008359]
[1750753863526,5.58402418,144.73,144.59,88.59008359]
[1750753863725,2.60340038,144.74,144.59,88.59008359]
[1750753863927,13.20601861,144.73,144.59,88.59008359]
[1750753864127,10.6029878,144.72,144.59,88.59008359]
[1750753864330,5.58791463,144.71,144.59,88.59008359]
[1750753864529,2.60226107,144.73,144.59,88.59008359]
[1750753864734,10.60358377,144.72,144.59,88.59008359]
[1750753865034,10.60695837,144.71,144.59,88.59008359]
[1750753865225,2.60437154,144.73,144.59,88.59008359]
[1750753865531,13.21299398,144.72,144.59,88.59008359]
[1750753865716,6.41475897,144.74,144.59,88.59008359]
[1750753865717,10.60862244,144.71,144.59,88.59008359]
[1750753866028,6.41475897,144.74,144.59,88.59008359]
[1750753866330,13.21469993,144.73,144.59,88.59008359]
[1750753866528,13.21469993,144.72,144.59,88.59008359]
[1750753866827,5.5929486,144.71,144.59,88.59008359]
[1750753867026,4.78845959,144.74,144.59,88.59008359]
[1750753867229,13.14124019,144.73,144.59,88.59008359]
[1750753867425,6.41475897,144.75,144.59,88.59008359]
[1750753867426,10.5356914,144.72,144.59,88.59008359]
[1750753867620,4.78845959,144.74,144.59,4.4907]
[1750753867928,7.56284526,144.76,144.6,12.93377879]
[1750753868130,6.41475897,144.79,144.61,15.33097879]
[1750753868328,13.14193929,144.78,144.61,15.33097879]
[1750753868627,7.56154489,144.79,144.63,12.93377879]
[1750753868826,4.78951948,144.81,144.63,12.93377879]
[1750753869026,13.11527049,144.8,144.63,12.93377879]
[1750753869225,13.11527049,144.79,144.64,12.93377879]
[1750753869519,4.78951948,144.82,144.65,2.408]
[1750753869730,13.11553276,144.81,144.66,2.3378]
[1750753869932,4.78951948,144.84,144.67,2.2614]
[1750753870226,13.10708725,144.83,144.67,2.2614]
[1750753870426,5.54576556,144.82,144.67,2.2614]
[1750753870627,4.95652904,144.84,144.67,2.2614]
[1750753870830,13.10250778,144.83,144.67,2.2614]
[1750753871030,5.54239161,144.82,144.67,2.2614]
[1750753871225,7.55975194,144.84,144.67,2.2614]
[1750753871423,13.10165007,144.83,144.67,2.2614]
[1750753871624,4.95621719,144.84,144.67,2.2614]
[1750753871924,13.09368215,144.83,144.67,2.2614]
[1750753872230,7.55409958,144.84,144.67,2.2614]
[1750753872435,5.54007827,144.83,144.67,2.2614]
[1750753872630,7.55394487,144.85,144.67,2.2614]
[1750753872930,8.13942941,144.84,144.67,2.2614]
[1750753873135,5.53770189,144.83,144.67,2.2614]
[1750753873435,2.60172752,144.83,144.67,2.2614]
[1750753873630,7.55246714,144.85,144.67,2.2614]
[1750753873932,5.58884531,144.84,144.67,23.0214]
[1750753874236,5.58800925,144.84,144.67,23.0214]
[1750753874433,8.18973677,144.86,144.67,23.0214]
[1750753874634,5.58800925,144.85,144.67,35.95517879]
[1750753875129,8.18973677,144.87,144.67,35.95517879]
[1750753875430,5.58800925,144.86,144.68,33.69377879]
[1750753875631,2.60172752,144.87,144.68,33.69377879]
[1750753875825,5.58800925,144.87,144.68,33.69377879]
[1750753876025,1.5483,144.89,144.68,33.69377879]
[1750753876026,5.58800925,144.88,144.68,33.69377879]
[1750753876226,5.58800925,144.87,144.68,33.69377879]
[1750753876429,5.58800925,144.88,144.68,12.93377879]
[1750753876625,5.58800925,144.88,144.67,15.19517879]
[1750753876836,7.13630925,144.89,144.68,12.93377879]
[1750753877031,1.5483,144.89,144.68,12.93377879]
[1750753877434,7.13630925,144.89,144.68,12.93377879]
[1750753877627,1.5483,144.89,144.67,15.19517879]
[1750753878136,7.13630925,144.89,144.67,15.19517879]
[1750753878338,1.5483,144.89,144.67,15.19517879]
[1750753878540,7.13630925,144.89,144.67,15.19517879]
[1750753878837,1.5483,144.89,144.67,15.19517879]
[1750753879139,7.13630925,144.89,144.67,15.19517879]
[1750753879336,5.58800925,144.88,144.67,2.2614]
[1750753879837,5.58800925,144.87,144.67,2.2614]
[1750753880032,5.58800925,144.88,144.67,2.2614]
[1750753880228,5.58800925,144.87,144.67,2.2614]
[1750753880434,5.58800925,144.88,144.67,2.2614]
[1750753880634,5.58800925,144.87,144.67,2.2614]
[1750753880847,5.58800925,144.88,144.67,2.2614]
[1750753881148,32.77488609,144.87,144.67,2.2614]
[1750753881351,5.58800925,144.86,144.67,2.2614]
[1750753881750,5.58800925,144.87,144.67,2.2614]
[1750753881948,5.58800925,144.88,144.67,2.2614]
[1750753882952,5.58800925,144.87,144.67,2.2614]
[1750753883154,5.58800925,144.88,144.67,2.2614]
[1750753883745,5.58800925,144.87,144.67,2.2614]
[1750753883942,5.58800925,144.88,144.67,2.2614]
[1750753884154,5.58800925,144.87,144.67,2.2614]
[1750753884353,5.58800925,144.88,144.67,2.2614]
[1750753884554,5.58800925,144.87,144.67,2.2614]
[1750753884756,5.58800925,144.88,144.67,2.2614]
[1750753884949,5.58800925,144.87,144.67,2.2614]
[1750753885152,5.58800925,144.88,144.67,2.2614]
[1750753885351,5.58800925,144.87,144.67,2.2614]
[1750753885650,5.58800925,144.86,144.67,2.2614]
[1750753885857,5.58800925,144.87,144.67,2.2614]
[1750753886157,5.58800925,144.86,144.67,2.2614]
[1750753886457,5.58800925,144.87,144.67,2.2614]
[1750753886756,5.58800925,144.86,144.67,2.2614]
[1750753887055,8.18590872,144.87,144.67,2.2614]
[1750753887252,5.58800925,144.86,144.67,2.2614]
[1750753887554,5.58800925,144.85,144.67,2.2614]
[1750753888157,5.58800925,144.84,144.67,2.2614]
[1750753888458,5.58800925,144.85,144.67,2.2614]
[1750753888650,5.58800925,144.84,144.67,2.2614]
[1750753888850,5.58800925,144.85,144.67,2.2614]
[1750753889253,5.58800925,144.84,144.67,2.2614]
[1750753889451,5.58800925,144.85,144.67,2.2614]
[1750753889653,28.96167166,144.84,144.67,2.2614]
[1750753889860,8.19167166,144.83,144.67,2.2614]
[1750753890158,5.58800925,144.82,144.67,2.2614]
[1750753890460,5.58800925,144.81,144.67,2.2614]
[1750753890963,5.58800925,144.82,144.67,2.2614]
[1750753894155,5.57699555,144.81,144.67,2.2614]
[1750753894360,8.18065796,144.8,144.67,2.2614]
[1750753894556,2.60366241,144.81,144.67,2.2614]
[1750753894752,8.17916979,144.8,144.67,2.2614]
[1750753895059,5.57526305,144.79,144.67,2.2614]
[1750753895261,5.57675827,144.78,144.67,2.2614]
[1750753895457,2.60727756,144.79,144.67,2.2614]
[1750753895758,5.57717195,144.78,144.67,2.2614]
[1750753895959,2.60727756,144.78,144.67,2.2614]
[1750753896161,5.57782691,144.77,144.67,2.2614]
[1750753896351,7.58790095,144.79,144.67,2.2614]
[1750753896553,8.18505454,144.78,144.67,2.2614]
[1750753896749,5.57777698,144.77,144.67,2.2614]
[1750753897063,7.58108792,144.79,144.67,2.2614]
[1750753897266,8.17639469,144.78,144.67,2.2614]
[1750753897464,5.56962687,144.77,144.67,2.2614]
[1750753897658,7.58253772,144.79,144.67,2.2614]
[1750753897871,8.16948293,144.78,144.67,2.2614]
[1750753898053,5.56126531,144.77,144.67,2.2614]
[1750753898255,7.58280684,144.8,144.67,2.2614]
[1750753898566,8.16982851,144.79,144.67,2.2614]
[1750753898767,5.56134177,144.78,144.67,2.2614]
[1750753899066,2.60848674,144.81,144.67,2.2614]
[1750753899362,6.32321466,144.83,144.67,2.2614]
[1750753899363,6.5171201,144.83,144.67,2.2614]
[1750753899564,8.17044935,144.82,144.67,2.2614]
[1750753899759,6.5171201,144.83,144.67,2.2614]
[1750753899963,8.17139519,144.82,144.67,2.2614]
[1750753900162,1.5428,144.83,144.67,15.19517879]
[1750753900360,2.60810336,144.83,144.67,15.19517879]
[1750753900868,2.60810336,144.84,144.67,15.19517879]
[1750753901067,8.17316175,144.83,144.67,15.19517879]
[1750753901269,2.60810336,144.84,144.68,12.93377879]
[1750753901468,4.97887709,144.85,144.67,15.19517879]
[1750753901469,8.17302366,144.83,144.67,15.19517879]
[1750753901668,2.60810336,144.84,144.67,15.19517879]
[1750753901868,8.17335232,144.83,144.67,15.19517879]
[1750753902166,2.60810336,144.84,144.67,15.19517879]
[1750753902368,8.17328475,144.83,144.67,15.19517879]
[1750753902670,4.97887709,144.85,144.67,15.19517879]
[1750753902671,2.60893534,144.84,144.67,15.19517879]
[1750753902863,8.19196926,144.83,144.67,15.19517879]
[1750753903068,2.60893534,144.84,144.67,15.19517879]
[1750753903367,5.5831344,144.83,144.68,12.93377879]